bitfinex/quotes_SOLUSD_20230701
["timestamp","ask_amount","ask_price","bid_price","bid_amount"]
[1688208661587,23.139,18.281,18.27,20.0]
[1688208661790,23.139,18.281,18.27,43.152]
[1688208664773,23.137,18.283,18.274,23.147]
[1688208664975,23.137,18.282,18.274,23.147]
[1688208665288,23.137,18.282,18.271,33.98819922]
[1688208667474,55.0,18.281,18.27,20.0]
[1688208667669,23.142,18.278,18.27,20.0]
[1688208668187,23.142,18.278,18.267,10.83719922]
[1688208668485,55.0,18.277,18.266,23.156]
[1688208668666,23.148,18.274,18.266,23.156]
[1688208668983,23.148,18.274,18.263,89.4701]
[1688208669280,23.148,18.274,18.263,100.30729922]
[1688208669476,23.148,18.274,18.264,55.0]
[1688208669679,23.148,18.274,18.265,23.158]
[1688208669869,108.669,18.285,18.265,23.158]
[1688208670067,20.0,18.284,18.266,58.36166367]
[1688208670368,23.143,18.278,18.267,23.155]
[1688208670888,23.143,18.278,18.268,10.83719922]
[1688208671082,23.143,18.278,18.268,33.99219922]
[1688208671398,59.554,18.286,18.268,33.99219922]
[1688208671562,65.837199,18.287,18.274,23.147]
[1688208671761,88.968199,18.287,18.274,23.147]
[1688208671983,65.837199,18.287,18.275,10.83719922]
[1688208672183,88.969199,18.287,18.277,23.143]
[1688208672893,65.837199,18.287,18.277,23.143]
[1688208673186,65.837199,18.287,18.278,10.83719922]
[1688208673389,65.837199,18.287,18.28,23.139]
[1688208674082,88.968199,18.287,18.278,10.83719922]
[1688208674378,88.968199,18.287,18.275,23.145]
[1688208674676,65.837199,18.287,18.275,33.98219922]
[1688208674885,65.837199,18.287,18.273,59.596]
[1688208674886,65.837199,18.287,18.279,23.14]
[1688208678790,65.837199,18.287,18.276,10.83719922]
[1688208678994,65.837199,18.287,18.277,23.142]
[1688208678995,55.0,18.286,18.277,23.142]
[1688208679282,78.132,18.286,18.276,23.145]
[1688208681090,65.837199,18.287,18.276,23.145]
[1688208681383,65.837199,18.287,18.276,33.98219922]
[1688208681993,88.968199,18.287,18.276,33.98219922]
[1688208683487,65.837199,18.287,18.277,65.83719922]
[1688208683694,23.121,18.295,18.282,23.137]
[1688208683879,23.119,18.297,18.287,23.13]
[1688208684191,23.115,18.3,18.287,23.13]
[1688208684394,23.119,18.297,18.287,23.13]
[1688208684586,46.237,18.297,18.287,23.13]
[1688208685501,23.119,18.297,18.287,23.13]
[1688208685674,23.114,18.301,18.29,23.126]
[1688208686296,59.487,18.307,18.291,3.37277872]
[1688208686487,46.238,18.302,18.293,23.123]
[1688208687084,23.118,18.298,18.289,23.128]
[1688208687293,23.118,18.298,18.287,23.13]
[1688208687499,55.0,18.297,18.287,23.13]
[1688208687699,23.121,18.295,18.287,23.13]
[1688208687995,23.124,18.293,18.285,23.132]
[1688208688175,55.0,18.292,18.285,23.132]
[1688208688578,78.125,18.292,18.283,23.135]
[1688208689490,186.827,18.292,18.283,23.135]
[1688208692501,163.702,18.292,18.283,23.135]
[1688208696588,108.702,18.292,18.26,35.62]
[1688208696896,20.0,18.291,18.283,23.135]
[1688208698802,20.0,18.291,18.276,10.83719922]
[1688208698993,20.0,18.291,18.283,23.135]
[1688208701795,23.127,18.29,18.278,4.12858453]
[1688208701997,20.0,18.289,18.278,4.12858453]
[1688208702201,20.0,18.289,18.277,4.1381941]
[1688208702908,20.0,18.289,18.281,23.138]
[1688208703882,20.0,18.291,18.281,23.138]
[1688208704202,23.118,18.298,18.281,33.97519922]
[1688208704400,94.908,18.3,18.281,33.97519922]
[1688208704401,25.40366881,18.297,18.282,76.45228281]
[1688208704703,23.118,18.297,18.286,23.131]
[1688208705704,58.518,18.297,18.286,23.131]
[1688208706999,55.0,18.296,18.286,23.131]
[1688208707292,23.121,18.295,18.286,23.131]
[1688208707489,23.124,18.293,18.286,23.131]
[1688208707685,55.0,18.292,18.286,23.131]
[1688208711605,78.124,18.292,18.285,23.133]
[1688208715613,78.124,18.292,18.283,23.135]
[1688208715812,20.0,18.291,18.278,23.142]
[1688208716016,23.131,18.288,18.278,23.142]
[1688208717107,23.129,18.289,18.278,23.142]
[1688208717796,23.129,18.289,18.276,92.6496]
[1688208718115,55.0,18.288,18.277,4.00993564]
[1688208718315,23.134,18.285,18.276,115.7936]
[1688208719412,23.134,18.285,18.274,23.146]
[1688208719618,55.0,18.284,18.274,23.146]
[1688208719801,23.137,18.283,18.274,23.146]
[1688208724026,132.623221,18.285,18.275,55.0]
[1688208724325,132.623221,18.285,18.277,23.143]
[1688208724499,23.134,18.285,18.277,23.143]
[1688208725708,88.971199,18.285,18.277,23.143]
[1688208726720,65.837199,18.285,18.277,23.143]
[1688208726909,23.133,18.286,18.277,23.143]
[1688208727715,88.9702,18.286,18.277,23.143]
[1688208728711,23.13,18.288,18.277,23.143]
[1688208729022,23.131,18.287,18.279,23.14]
[1688208729612,78.131,18.287,18.279,23.14]
[1688208729814,55.0,18.287,18.279,23.14]
[1688208731526,78.131,18.287,18.279,23.14]
[1688208732722,78.131,18.287,18.278,78.142]
[1688208732913,78.131,18.287,18.275,61.75243508]
[1688208733418,137.681,18.287,18.275,10.83719922]
[1688208733618,137.681,18.287,18.274,4.24769167]
[1688208734128,137.681,18.287,18.274,27.39469167]
[1688208735721,23.137,18.283,18.27,66.76719922]
[1688208735927,23.137,18.283,18.272,23.149]
[1688208737329,23.134,18.285,18.273,3.04381561]
[1688208737528,23.134,18.285,18.276,23.144]
[1688208738731,23.134,18.285,18.274,23.146]
[1688208738915,55.0,18.284,18.272,10.83719922]
[1688208739117,82.709,18.281,18.261,153.0891]
[1688208739318,35.52,18.28,18.263,10.83719922]
[1688208739522,23.146,18.275,18.266,23.157]
[1688208740436,23.143,18.278,18.266,82.775]
[1688208740739,23.157,18.276,18.266,23.157]
[1688208741240,23.157,18.276,18.266,142.77519922]
[1688208741535,23.157,18.276,18.269,23.153]
[1688208742539,23.157,18.276,18.269,82.762]
[1688208743034,23.157,18.276,18.269,23.153]
[1688208743853,23.138,18.282,18.27,75.0]
[1688208744152,23.135,18.284,18.273,23.148]
[1688208744354,23.135,18.284,18.27,170.063]
[1688208744355,23.135,18.284,18.277,23.143]
[1688208744536,23.134,18.285,18.277,23.143]
[1688208744737,59.548,18.284,18.277,23.143]
[1688208747848,23.136,18.283,18.275,23.145]
[1688208749056,59.548,18.284,18.275,23.145]
[1688208749653,59.548,18.284,18.278,23.142]
[1688208750461,59.548,18.284,18.277,23.142]
[1688208750836,23.136,18.283,18.274,33.98319922]
[1688208751040,59.548,18.284,18.274,23.146]
[1688208752856,23.136,18.283,18.274,23.146]
[1688208753038,59.548,18.284,18.274,23.146]
[1688208755759,82.684,18.284,18.274,23.146]
[1688208757858,59.548,18.284,18.274,23.146]
[1688208758055,59.548,18.284,18.275,3.11312821]
[1688208758244,59.548,18.284,18.273,86.42691246]
[1688208758245,82.683,18.284,18.277,23.143]
[1688208758450,82.683,18.284,18.275,23.145]
[1688208758861,59.548,18.284,18.275,23.145]
[1688208759947,82.683,18.284,18.275,23.145]
[1688208760444,82.683,18.284,18.271,150.5605]
[1688208760748,82.683,18.284,18.271,90.9615]
[1688208761060,82.683,18.284,18.272,3.91049444]
[1688208761746,82.683,18.284,18.273,23.148]
[1688208765057,82.683,18.284,18.274,3.20734424]
[1688208765261,59.548,18.284,18.276,23.144]
[1688208765760,59.548,18.284,18.279,23.141]
[1688208766469,59.548,18.284,18.277,55.0]
[1688208766655,59.548,18.284,18.278,23.142]
[1688208768557,23.125,18.292,18.283,23.135]
[1688208768759,23.123,18.294,18.283,23.135]
[1688208769163,23.123,18.294,18.284,3.47683144]
[1688208769573,23.123,18.294,18.285,23.132]
[1688208769758,46.258,18.294,18.285,23.132]
[1688208769957,23.135,18.294,18.285,23.132]
[1688208770369,23.135,18.294,18.286,55.0]
[1688208770562,23.135,18.294,18.288,23.129]
[1688208772371,23.118,18.298,18.288,23.129]
[1688208772776,82.674,18.298,18.288,23.129]
[1688208775981,432.38,18.32,18.289,75.0]
[1688208775982,168.014,18.308,18.289,75.0]
[1688208776190,23.113,18.302,18.294,23.121]
[1688208776478,6.30219179,18.307,18.294,23.121]
[1688208776978,108.26980079,18.307,18.294,23.121]
[1688208777192,55.0,18.306,18.294,23.121]
[1688208777378,6.30219179,18.305,18.294,23.121]
[1688208777685,23.111,18.303,18.292,23.123]
[1688208777988,23.115,18.3,18.292,23.123]
[1688208779170,78.113,18.302,18.292,23.123]
[1688208781577,78.113,18.302,18.293,2.25941259]
[1688208781887,78.113,18.302,18.294,23.121]
[1688208782462,101.967609,18.307,18.294,23.121]
[1688208782668,5.88753553,18.306,18.294,23.121]
[1688208782868,55.0,18.305,18.294,23.121]
[1688208783285,5.88753553,18.304,18.292,23.123]
[1688208783484,5.88753553,18.304,18.285,108.666]
[1688208783485,23.113,18.301,18.293,23.123]
[1688208783873,20.0,18.3,18.293,23.123]
[1688208784289,43.115,18.3,18.293,23.123]
[1688208784875,1.91618608,18.299,18.289,23.128]
[1688208785073,23.117,18.298,18.289,23.128]
[1688208785268,20.0,18.3,18.289,23.128]
[1688208785466,2.63054328,18.301,18.29,8.32638605]
[1688208785673,25.74354328,18.301,18.293,23.123]
[1688208785874,20.0,18.3,18.293,23.123]
[1688208786890,43.115,18.3,18.293,23.123]
[1688208787094,43.115,18.3,18.291,23.124]
[1688208787778,43.115,18.3,18.288,10.83719922]
[1688208788085,2.16798835,18.299,18.289,4.96156572]
[1688208788392,23.119,18.296,18.286,34.54616156]
[1688208789789,23.119,18.296,18.286,45.38336078]
[1688208789983,57.665161,18.296,18.287,55.0]
[1688208790289,57.665161,18.296,18.287,78.13]
[1688208790876,57.665161,18.296,18.287,88.96719922]
[1688208791169,57.665161,18.296,18.288,2.48174043]
[1688208791373,57.665161,18.296,18.289,23.128]
[1688208792182,57.665161,18.296,18.282,27.20952744]
[1688208792386,2.53356811,18.295,18.285,23.132]
[1688208792572,23.124,18.292,18.285,23.132]
[1688208792978,23.123,18.294,18.285,23.132]
[1688208793685,23.123,18.294,18.283,10.83719922]
[1688208793989,23.123,18.294,18.284,3.56876576]
[1688208794186,23.123,18.294,18.283,23.136]
[1688208794586,23.123,18.294,18.284,9.33485039]
[1688208794990,23.123,18.294,18.284,32.46885039]
[1688208795193,23.123,18.294,18.284,23.134]
[1688208796480,1.43235,18.295,18.285,60.72463984]
[1688208796796,34.546161,18.296,18.288,23.129]
[1688208796991,57.666161,18.296,18.288,23.129]
[1688208800191,34.546161,18.296,18.288,23.129]
[1688208800583,57.665161,18.296,18.288,23.129]
[1688208802085,57.665161,18.296,18.286,23.131]
[1688208802407,57.665161,18.296,18.287,4.59215126]
[1688208802588,4.75313993,18.295,18.285,23.133]
[1688208802901,23.123,18.293,18.285,23.133]
[1688208805288,34.546161,18.296,18.285,23.133]
[1688208805488,34.546161,18.296,18.289,23.128]
[1688208805687,57.666161,18.296,18.289,23.128]
[1688208806087,34.546161,18.296,18.289,23.128]
[1688208806280,34.546161,18.296,18.29,55.0]
[1688208806706,34.546161,18.296,18.289,23.128]
[1688208807004,57.666161,18.296,18.29,55.0]
[1688208808094,57.666161,18.296,18.289,78.128]
[1688208810799,57.666161,18.296,18.285,27.99030329]
[1688208810992,57.666161,18.296,18.286,4.4330242]
[1688208811502,23.123,18.293,18.286,4.4330242]
[1688208811706,23.123,18.293,18.285,23.133]
[1688208812306,23.123,18.293,18.286,55.0]
[1688208812510,23.123,18.293,18.286,78.132]
[1688208812691,23.123,18.293,18.284,23.133]
[1688208813088,23.123,18.293,18.285,2.88976799]
[1688208813497,23.123,18.293,18.285,23.133]
[1688208815311,23.123,18.293,18.283,23.135]
[1688208815493,23.123,18.293,18.284,4.56412931]
[1688208816714,23.123,18.293,18.282,7.77346992]
[1688208818013,35.34,18.29,18.278,10.98927016]
[1688208818197,35.34,18.29,18.273,90.7545]
[1688208818198,82.683,18.287,18.274,15.11614497]
[1688208818610,55.0,18.286,18.271,10.83719922]
[1688208818794,23.138,18.282,18.271,10.83719922]
[1688208819199,23.138,18.282,18.272,16.29744037]
[1688208820008,35.52,18.28,18.266,16.29744037]
[1688208820203,23.145,18.276,18.266,16.29744037]
[1688208821203,23.145,18.276,18.266,39.45444037]
[1688208822014,23.145,18.276,18.267,55.0]
[1688208822309,23.145,18.276,18.268,16.29744037]
[1688208824718,23.145,18.276,18.269,55.0]
[1688208824913,23.145,18.276,18.268,4.31055865]
[1688208825716,23.145,18.276,18.268,27.46555865]
[1688208825910,23.145,18.276,18.269,55.0]
[1688208827706,23.145,18.276,18.265,141.08348243]
[1688208828016,21.906391,18.282,18.27,23.151]
[1688208828204,21.906391,18.282,18.271,11.96517757]
[1688208828403,21.906391,18.282,18.274,23.147]
[1688208829111,23.133,18.286,18.275,55.0]
[1688208829314,23.133,18.286,18.276,35.10817757]
[1688208829517,23.133,18.286,18.277,55.0]
[1688208829704,23.133,18.286,18.278,23.141]
[1688208830204,55.0,18.286,18.278,23.141]
[1688208830420,78.132,18.286,18.277,55.0]
[1688208831009,78.132,18.286,18.273,59.595]
[1688208831323,78.132,18.286,18.274,10.7793145]
[1688208831621,78.132,18.286,18.277,23.143]
[1688208832722,55.0,18.286,18.277,23.143]
[1688208833624,55.0,18.286,18.28,23.139]
[1688208834003,23.128,18.289,18.282,23.136]
[1688208835317,78.128,18.289,18.281,78.138]
[1688208835620,55.0,18.289,18.281,78.138]
[1688208835814,23.126,18.291,18.282,3.76877416]
[1688208836019,23.126,18.291,18.283,23.135]
[1688208836215,55.0,18.29,18.283,23.135]
[1688208836807,78.127,18.29,18.283,23.135]
[1688208838720,55.0,18.29,18.283,23.135]
[1688208839933,23.12,18.296,18.284,55.0]
[1688208840116,128.2114,18.3,18.287,23.13]
[1688208840436,82.69,18.292,18.285,23.133]
[1688208840637,59.565,18.292,18.285,23.133]
[1688208841526,59.513,18.299,18.286,55.0]
[1688208841731,23.121,18.295,18.287,6.48114635]
[1688208842113,2.04771862,18.294,18.282,12.44427775]
[1688208842434,23.124,18.293,18.285,23.133]
[1688208842731,23.123,18.294,18.284,3.24493251]
[1688208843807,23.123,18.294,18.285,23.133]
[1688208845010,55.0,18.293,18.277,23.143]
[1688208845213,23.129,18.289,18.279,17.1892602]
[1688208845416,55.0,18.288,18.279,17.1892602]
[1688208845628,23.133,18.286,18.275,23.145]
[1688208845825,23.133,18.286,18.272,17.1892602]
[1688208845826,23.133,18.286,18.276,23.145]
[1688208847910,23.133,18.286,18.275,23.145]
[1688208848515,55.0,18.285,18.273,23.147]
[1688208848720,23.138,18.282,18.274,17.1892602]
[1688208849023,23.138,18.282,18.273,23.147]
[1688208850430,78.138,18.282,18.273,23.147]
[1688208852231,55.0,18.282,18.273,23.147]
[1688208853534,55.0,18.282,18.274,2.4411298]
[1688208854036,55.0,18.282,18.276,23.144]
[1688208854616,55.0,18.282,18.251,54.52]
[1688208854617,78.137,18.282,18.265,59.619]
[1688208854824,23.145,18.276,18.266,23.157]
[1688208855744,82.731,18.276,18.263,20.22053085]
[1688208856041,23.152,18.271,18.262,23.162]
[1688208856634,23.154,18.269,18.26,23.164]
[1688208857438,90.52,18.27,18.26,23.164]
[1688208857636,23.152,18.271,18.26,23.164]
[1688208857835,59.586,18.276,18.261,3.2168943]
[1688208858029,23.15,18.272,18.264,23.159]
[1688208858632,23.148,18.274,18.264,23.159]
[1688208858827,55.0,18.273,18.264,23.159]
[1688208859029,78.149,18.273,18.264,23.159]
[1688208860146,101.308,18.273,18.264,23.159]
[1688208860441,101.308,18.273,18.263,23.161]
[1688208861138,23.159,18.273,18.263,23.161]
[1688208861834,23.159,18.273,18.264,2.26961996]
[1688208862023,23.159,18.273,18.266,23.156]
[1688208862425,23.159,18.273,18.261,59.632]
[1688208862728,23.159,18.273,18.266,23.157]
[1688208863825,23.159,18.273,18.264,23.159]
[1688208863826,78.151,18.272,18.264,23.159]
[1688208864246,23.151,18.272,18.264,23.159]
[1688208864846,55.0,18.271,18.264,23.159]
[1688208865041,23.159,18.273,18.264,23.159]
[1688208866336,23.159,18.273,18.264,82.784]
[1688208866535,23.159,18.273,18.267,23.156]
[1688208867139,23.141,18.28,18.268,55.0]
[1688208867349,20.0,18.279,18.271,23.15]
[1688208867540,23.159,18.274,18.271,23.15]
[1688208869745,23.159,18.274,18.269,23.153]
[1688208870446,23.159,18.274,18.267,115.0151]
[1688208873048,23.159,18.274,18.268,55.0]
[1688208873250,23.145,18.276,18.268,78.154]
[1688208874547,46.29,18.276,18.268,78.154]
[1688208875751,46.29,18.276,18.268,55.0]
[1688208877351,46.29,18.276,18.267,91.8601]
[1688208877751,46.29,18.276,18.265,23.157]
[1688208877936,46.29,18.276,18.266,55.0]
[1688208878137,46.29,18.276,18.267,2.52861175]
[1688208878355,23.145,18.276,18.267,25.68461175]
[1688208878540,23.145,18.276,18.268,55.0]
[1688208878846,46.29,18.276,18.269,23.152]
[1688208879055,23.145,18.276,18.269,23.152]
[1688208879239,23.145,18.276,18.27,55.0]
[1688208879442,46.29,18.276,18.27,55.0]
[1688208881655,46.29,18.276,18.266,23.157]
[1688208881845,46.29,18.276,18.265,5.15881802]
[1688208882047,46.29,18.276,18.263,8.52123639]
[1688208882249,23.15,18.272,18.263,8.52123639]
[1688208882450,23.15,18.272,18.258,9.38508186]
[1688208882653,23.15,18.272,18.259,20.0]
[1688208883157,23.15,18.272,18.26,32.54908186]
[1688208883750,23.15,18.272,18.263,23.161]
[1688208883950,23.15,18.272,18.262,9.38508186]
[1688208884353,23.15,18.272,18.262,32.54708186]
[1688208884652,23.15,18.272,18.262,23.162]
[1688208886158,23.15,18.272,18.26,23.164]
[1688208886361,55.0,18.271,18.261,5.54708068]
[1688208886656,23.154,18.269,18.261,5.54708068]
[1688208886862,78.152,18.271,18.262,23.162]
[1688208887554,23.145,18.276,18.262,23.162]
[1688208887756,23.148,18.274,18.263,3.11627462]
[1688208888060,23.148,18.274,18.266,23.157]
[1688208896368,46.291,18.276,18.266,23.157]
[1688208896662,23.145,18.276,18.266,23.157]
[1688208896864,23.145,18.276,18.269,23.153]
[1688208897947,46.291,18.276,18.264,96.198]
[1688208898142,46.291,18.276,18.265,7.51454839]
[1688208898354,46.291,18.276,18.266,55.0]
[1688208898762,46.291,18.276,18.267,7.51454839]
[1688208899863,46.291,18.276,18.268,23.154]
[1688208900250,23.145,18.276,18.268,23.154]
[1688208901456,46.29,18.276,18.264,96.198]
[1688208901769,46.29,18.276,18.265,62.99226883]
[1688208902769,46.29,18.276,18.268,23.155]
[1688208903560,46.29,18.276,18.266,23.156]
[1688208903868,46.29,18.276,18.267,3.2455798]
[1688208904068,46.29,18.276,18.266,23.156]
[1688208904757,46.29,18.276,18.267,3.23880119]
[1688208904959,46.29,18.276,18.267,26.39380119]
[1688208905286,46.29,18.276,18.267,23.155]
[1688208905575,46.29,18.276,18.265,55.0]
[1688208905750,46.29,18.276,18.265,8.16724988]
[1688208905952,46.29,18.276,18.266,55.0]
[1688208906760,46.29,18.276,18.267,31.32324988]
[1688208906962,46.29,18.276,18.267,23.156]
[1688208907462,46.29,18.276,18.266,55.0]
[1688208907656,46.29,18.276,18.267,3.03627136]
[1688208907979,46.29,18.276,18.267,23.155]
[1688208909488,46.29,18.276,18.268,2.68575556]
[1688208909671,46.29,18.276,18.268,25.83975556]
[1688208909873,46.29,18.276,18.264,23.159]
[1688208910176,23.15,18.272,18.265,6.69124777]
[1688208910376,82.749,18.272,18.259,20.0]
[1688208910677,23.156,18.268,18.259,20.0]
[1688208910979,23.156,18.268,18.255,20.0]
[1688208911276,23.156,18.268,18.256,11.76384783]
[1688208911477,23.156,18.268,18.257,20.0]
[1688208911657,23.156,18.268,18.258,11.76384783]
[1688208911854,23.153,18.27,18.259,43.166]
[1688208912058,55.0,18.269,18.259,43.166]
[1688208912459,55.0,18.269,18.26,3.79023556]
[1688208912764,23.152,18.271,18.263,23.161]
[1688208914070,23.155,18.269,18.26,2.87485151]
[1688208914275,23.155,18.269,18.251,421.08426126]
[1688208914276,23.158,18.266,18.255,23.17]
[1688208914475,55.0,18.265,18.255,23.17]
[1688208914657,23.161,18.264,18.255,23.17]
[1688208915184,23.161,18.264,18.251,480.75126126]
[1688208915185,23.161,18.264,18.251,444.26026126]
[1688208915482,23.161,18.264,18.252,7.75765282]
[1688208915483,23.165,18.26,18.252,7.75765282]
[1688208915677,23.165,18.26,18.251,421.08426126]
[1688208915881,23.169,18.258,18.251,421.08426126]
[1688208916088,55.0,18.263,18.251,444.26026126]
[1688208916268,55.0,18.263,18.252,3.53951464]
[1688208916589,23.167,18.259,18.252,26.71351464]
[1688208916882,23.167,18.259,18.252,23.174]
[1688208917066,55.0,18.264,18.252,34.01119922]
[1688208917383,78.161,18.264,18.255,23.17]
[1688208918266,78.161,18.264,18.253,23.173]
[1688208918466,55.0,18.263,18.251,444.25926126]
[1688208918787,23.166,18.26,18.252,3.47994224]
[1688208919076,114.627,18.264,18.251,444.25926126]
[1688208919077,23.169,18.258,18.251,421.08426126]
[1688208919971,23.169,18.258,18.251,444.26026126]
[1688208920664,55.0,18.264,18.252,2.62885384]
[1688208920861,23.163,18.262,18.254,23.172]
[1688208922589,23.163,18.262,18.251,431.92146048]
[1688208922884,23.167,18.259,18.251,421.08426126]
[1688208923180,132.01,18.256,18.251,421.08426126]
[1688208923583,55.0,18.255,18.251,421.08426126]
[1688208923884,82.831,18.254,18.251,421.08426126]
[1688208924083,55.0,18.253,18.251,374.67506126]
[1688208924294,23.175,18.252,18.251,374.67506126]
[1688208924473,78.175,18.252,18.251,374.67506126]
[1688208924673,133.175,18.252,18.251,374.67506126]
[1688208925274,78.175,18.252,18.251,374.67506126]
[1688208925672,78.175,18.252,18.243,16.26800604]
[1688208925872,78.175,18.252,18.243,39.45300604]
[1688208926283,78.175,18.252,18.243,50.29020526]
[1688208930388,55.0,18.252,18.243,50.29020526]
[1688208931898,78.176,18.252,18.243,50.29020526]
[1688208936792,55.0,18.252,18.244,55.0]
[1688208937101,55.0,18.252,18.245,23.183]
[1688208937393,59.649,18.257,18.244,10.83719922]
[1688208937891,81.582091,18.257,18.244,10.83719922]
[1688208938094,23.171,18.256,18.245,55.0]
[1688208938305,23.171,18.256,18.247,23.181]
[1688208938779,23.171,18.256,18.248,34.01619922]
[1688208938978,21.933091,18.257,18.248,34.01619922]
[1688208938979,23.166,18.259,18.25,23.176]
[1688208939186,23.164,18.261,18.251,4.7558298]
[1688208939395,23.162,18.263,18.253,23.173]
[1688208940297,168.383,18.268,18.253,23.173]
[1688208940499,23.161,18.264,18.254,3.15157514]
[1688208940698,23.161,18.264,18.256,23.169]
[1688208942010,23.161,18.264,18.251,105.36259922]
[1688208942200,23.161,18.264,18.252,3.95581925]
[1688208942698,82.784,18.264,18.252,3.95581925]
[1688208943700,3.26181782,18.263,18.25,6.27757572]
[1688208943882,23.165,18.26,18.252,23.174]
[1688208944081,23.163,18.262,18.252,23.174]
[1688208945213,23.163,18.262,18.25,90.2447]
[1688208945499,23.163,18.262,18.252,23.175]
[1688208945798,82.784,18.264,18.255,23.17]
[1688208945997,142.409,18.264,18.254,3.59555057]
[1688208946302,1.67326512,18.263,18.251,5.45613403]
[1688208946603,23.166,18.26,18.251,5.45613403]
[1688208946809,23.166,18.26,18.25,23.178]
[1688208947401,23.59123427,18.259,18.247,23.181]
[1688208947583,23.171,18.256,18.244,96.5538]
[1688208948003,23.171,18.256,18.246,23.182]
[1688208948301,20.0,18.259,18.246,23.182]
[1688208948504,20.0,18.259,18.247,5.06868666]
[1688208948689,23.169,18.257,18.249,23.178]
[1688208948890,23.169,18.257,18.244,156.2438]
[1688208949200,23.169,18.257,18.247,23.181]
[1688208951709,23.169,18.257,18.248,55.0]
[1688208951901,23.169,18.257,18.249,23.178]
[1688208953605,23.169,18.257,18.248,55.0]
[1688208955096,23.169,18.257,18.247,34.01719922]
[1688208955295,23.169,18.257,18.248,55.0]
[1688208957608,23.169,18.257,18.248,89.01719922]
[1688208957817,28.32074217,18.263,18.25,35.75]
[1688208957997,28.32074217,18.263,18.251,55.0]
[1688208958197,59.623,18.264,18.254,23.171]
[1688208958402,23.156,18.267,18.255,55.0]
[1688208958597,23.156,18.267,18.258,23.167]
[1688208958797,23.156,18.267,18.259,55.0]
[1688208959012,46.323,18.267,18.258,23.167]
[1688208959306,46.323,18.267,18.254,23.172]
[1688208959604,1.22849374,18.266,18.255,3.32571359]
[1688208959809,23.161,18.263,18.255,3.32571359]
[1688208960013,23.161,18.263,18.255,23.171]
[1688208962898,23.16,18.265,18.255,23.171]
[1688208965912,23.167,18.267,18.255,23.171]
[1688208966116,23.167,18.267,18.256,2.58942248]
[1688208966303,23.159,18.265,18.256,2.58942248]
[1688208966510,55.0,18.264,18.253,6.76880648]
[1688208966806,23.164,18.261,18.252,96.498]